Cogmind - Beta 15 @@@ ROGUE MODE // 2025.06.18 @ 01:42:37 Player: morimori Result: Destroyed by G-67 Veteran with Plasma Rifle Performance ------------- Evolutions (6) 3000 Regions Visited (19) 3800 Robots Destroyed (275) 1375 Value Destroyed (7728) 7728 Prototype IDs (46) 920 Alien Tech Used (2) 400 Bonus (1880) 1880 TOTAL SCORE: 19103 Bonus ------- High Alert Combat Kills 360 Follower Combat Kills 1299 Network Hubs Disabled 200 Met Zhirov 300 Friendly Fire -279 Cogmind --------- Core Integrity 0/1150 Matter 87/300 Energy 100/100 System Corruption 6% Temperature Cool (0) Movement Core (700) Ox13 Location -4/Factory Parts ------- > --- POWER (2) -------- (None) > --- PROPULSION (6) --- (None) > --- UTILITY (9) ------ High-capacity Storage Unit Graphene Brace Hacking Suite Improved Hacking Suite Improved Hacking Suite > --- WEAPON (2) ------- (None) > --- INVENTORY (20) --- Advanced Coolant Injector Huge Storage Unit Experimental Sensor Array Experimental Targeting Computer Experimental Targeting Computer Core Analyzer Experimental Utility Shielding Experimental Utility Shielding Advanced Hardlight Generator System Shield Authchip [Device] Authchip [Processor] Authchip [Weapon] Improved Component Analysis Suite Matter Neutralizer Matter Neutralizer Matter Neutralizer Matter Neutralizer Compact Tesla Bomb Launcher Impact Mace Peak State ------------ > --- POWER ------------ Light Angular Momentum Engine Micro Fission Core > --- PROPULSION ------- Gravmag Array Gravmag Array Improved Antigrav System Improved Antigrav System > --- UTILITY ---------- High-capacity Storage Unit Advanced Signal Interpreter Advanced Reaction Control System Improved Hacking Suite Improved Hacking Suite Improved Hacking Suite Improved Hacking Suite Improved Hacking Suite Mini Drone Bay > --- WEAPON ----------- Matter Neutralizer Impact Mace > --- INVENTORY -------- Enhanced Armored Leg Shield Leg Advanced Coolant Injector Huge Storage Unit Experimental Targeting Computer Experimental Targeting Computer Core Analyzer Improved Transmission Jammer Experimental Utility Shielding Experimental Utility Shielding Improved Thermal Shield Authchip [Device] Authchip [Weapon] Improved Component Analysis Suite Mini Drone Bay Transdimensional Reconstructor Advanced KE Penetrator Advanced KE Penetrator Compact Tesla Bomb Launcher [Rating: 113] Favorites ----------- Power Light Fission Core Engine Heavy Ion Engine Power Core Light Fission Core Reactor Quantum Reactor Propulsion Wheel Treads Light Treads Leg Armored Leg Wheel Wheel Hover Unit Improved Gravmag System Flight Unit Improved VTOL Module Utility Improved Hacking Suite Device Advanced Sensor Array Storage High-capacity Storage Unit Processor Improved Signal Interpreter Hackware Improved Hacking Suite Protection Hardened Light Armor Plating Weapon Cooled Plasma Cannon Energy Gun Improved Medium Laser Energy Cannon Cooled Plasma Cannon Ballistic Gun Heavy Assault Rifle Ballistic Cannon Linear Accelerator Launcher Mini Grenade Launcher Impact Weapon Impact Mace Slashing Weapon Ripper Special Melee Weapon Advanced Datajack Build | -11 -10 -10 -9 -9 -8 -7 -7 -7 -6 -6 -6 -6 -6 -5 -5 -5 -5 -4 -4 ------- Run | Yrd Mat Min Mat Min Mat Fac Was Fac Fac Ext Cet Arc Hub Fac Upp Upp Zhi Pro Fac Slots Evolved 12 | . . . 2 . 2 2 . . 2 . . . . 2 . . . . 2 Power 1 | . . . . . . . . . . . . . . . . . . . 1 Propulsion 4 | . . . . . 2 1 . . . . . . . 1 . . . . . Utility 7 | . . . 2 . . 1 . . 2 . . . . 1 . . . . 1 Weapon . | . . . . . . . . . . . . . . . . . . . . Parts Attached 261 | 7 14 2 18 9 24 18 . 9 40 14 8 14 2 38 7 1 3 . 33 Power 28 | 1 2 1 2 1 3 2 . . 6 2 1 . . 2 1 . 1 . 3 Engine 11 | 1 2 1 1 1 . . . . 1 1 . . . 1 1 . . . 1 Core 15 | . . . 1 . 3 2 . . 5 1 . . . 1 . . . . 2 Reactor 2 | . . . . . . . . . . . 1 . . . . . 1 . . Propulsion 77 | 2 4 . 4 4 9 8 . 5 14 2 1 6 1 10 . 1 . . 6 Treads 3 | . . . . . . . . 1 . 1 1 . . . . . . . . Leg 5 | . . . . . . . . . 1 . . . . . . 1 . . 3 Wheel 30 | 2 4 . 4 4 9 1 . . 6 . . . . . . . . . . Hover 37 | . . . . . . 7 . 3 6 1 . 6 1 10 . . . . 3 Flight 2 | . . . . . . . . 1 1 . . . . . . . . . . Utility 91 | 2 3 1 3 3 5 4 . 1 13 5 3 7 1 20 2 . 2 . 16 Device 40 | 1 1 1 1 2 3 1 . 1 6 1 . 3 . 8 2 . . . 9 Storage 8 | 1 1 . . . . 1 . . 1 . 1 . 1 1 . . 1 . . Processor 10 | . . . . 1 2 . . . 2 1 . . . 4 . . . . . Hackware 21 | . . . . . . 1 . . 4 . . 4 . 7 . . . . 5 Protection 12 | . 1 . 2 . . 1 . . . 3 2 . . . . . 1 . 2 Artifact . | . . . . . . . . . . . . . . . . . . . . Weapon 65 | 2 5 . 9 1 7 4 . 3 7 5 3 1 . 6 4 . . . 8 Energy Gun 13 | 1 1 . 3 1 5 . . . . 1 1 . . . . . . . . Energy Cannon 13 | . . . . . . . . 2 1 . 1 . . 2 2 . . . 5 Ballistic Gun 23 | 1 4 . 3 . 1 4 . . 3 4 1 1 . 1 . . . . . Ballistic Cannon 1 | . . . . . . . . . . . . . . . . . . . 1 Launcher 8 | . . . 3 . . . . 1 2 . . . . . 1 . . . 1 Special Weapon . | . . . . . . . . . . . . . . . . . . . . Impact Weapon 2 | . . . . . . . . . 1 . . . . 1 . . . . . Slashing Weapon 4 | . . . . . 1 . . . . . . . . 2 1 . . . . Piercing Weapon . | . . . . . . . . . . . . . . . . . . . . Special Melee Weapon 1 | . . . . . . . . . . . . . . . . . . . 1 Unidentified Prototypes 24 | . 1 . 3 . 1 1 . 1 5 1 4 . 1 1 . . 4 . 1 Corrupted Parts 4 | . . . . . . . . . . . 4 . . . . . . . . System Corruption 12 | . . . . . . . . . . . 12 . . . . . . . . Parts Lost 81 | . 6 . 2 4 7 9 . 5 12 9 2 . . 1 . . . . 24 Power 10 | . 1 . . 1 2 1 . . 1 1 . . . . . . . . 3 Propulsion 41 | . 3 . 2 . 5 7 . 4 6 5 1 . . . . . . . 8 Utility 20 | . . . . 3 . 1 . 1 4 2 . . . . . . . . 9 Weapon 10 | . 2 . . . . . . . 1 1 1 . . 1 . . . . 4 Highest Loss Streak 7 | . 4 . 1 3 3 7 . 3 2 3 2 . . 1 . . . . 6 To Critical Strikes 1 | . . . . . . . . . . . . . . . . . . . 1 Average Backups 16 | 3 13 20 19 19 19 14 5 4 12 14 16 18 15 19 20 20 20 20 19 Power 1 | 1 2 2 2 2 1 . . . . 1 1 2 1 1 1 1 1 1 . Propulsion 2 | 1 4 5 4 5 5 . . . 3 . . . 2 2 2 2 2 2 1 Utility 7 | . 3 7 5 3 4 5 5 3 4 6 7 8 8 11 13 13 13 13 13 Weapon 4 | . 2 5 6 7 9 6 . . 3 6 6 7 3 3 4 4 3 3 2 Tool/Special . | . . . . . . . . . . . . . . . . . . . . Unused Backups 77 | . 7 1 8 . 4 10 . 4 8 2 . 9 . 8 . . . . 16 Power 8 | . 2 . 4 . . . . 1 . . . 1 . . . . . . . Propulsion 13 | . . . 2 . 3 1 . . 3 . . . . 1 . . . . 3 Utility 36 | . 1 1 2 . . 4 . 3 4 1 . 5 . 2 . . . . 13 Weapon 19 | . 4 . . . 1 4 . . 1 1 . 3 . 5 . . . . . Tool/Special 1 | . . . . . . 1 . . . . . . . . . . . . . Average Slot Usage (%) 88 | . 97 100 99 99 97 96 28 38 82 89 76 91 100 89 87 88 82 88 77 Engine 4 | . 14 14 9 10 1 . . . 1 . . . . 1 5 5 4 5 2 Core 2 | . . . 1 . 7 6 . . 4 5 4 2 6 3 . . . . 1 Wheel 10 | . 26 28 21 22 34 1 . . 12 . . . . . . . . . . Hover 12 | . . . . . . 34 . 2 6 19 7 21 33 26 23 23 23 23 16 Device 8 | . 13 14 10 18 11 5 . 7 10 5 . 3 6 4 4 5 5 5 5 Storage 7 | . 14 14 11 11 9 6 . . 5 6 6 6 6 5 5 5 5 5 5 Processor 8 | . . . . 7 15 15 15 12 6 6 13 13 13 11 11 11 11 11 6 Hackware 13 | . . . . . . 6 7 7 17 20 20 20 20 22 23 23 23 23 26 Protection 2 | . . . 21 7 . . . . . 6 5 2 . . . . . . 1 Energy Gun 2 | . 4 . 3 1 12 . 5 . . . 4 3 . . . . . . . Energy Cannon 2 | . . . . . . . . 1 5 3 1 . . 2 5 3 . 5 3 Ballistic Gun 7 | . 22 28 16 7 4 8 . . 4 8 4 8 13 1 . . . . 2 Launcher 1 | . . . 1 12 . . . . . . . . . . . 1 . . . Peak Build Rating 113 | 7 13 13 22 23 28 41 11 30 74 72 87 100 79 95 96 92 93 93 113 Average Rating 53 | 5 8 12 19 20 26 35 10 16 52 59 67 85 78 89 92 91 86 93 96 On Entrance 47 | . 7 13 12 19 22 24 11 8 10 71 52 87 79 78 87 92 92 93 93 Naked Turns . | . . . . . . . . . . . . . . . . . . . . Heaviest Build 79 | 15 52 50 65 65 56 55 3 8 79 52 78 78 40 66 66 56 56 56 72 Greatest Support 80 | 32 32 20 26 26 46 37 3 9 70 45 80 80 45 60 60 60 60 60 75 Greatest Overweight (x) 13 | . 2 2 3 2 2 1 . 2 2 5 5 8 . 1 1 . . . 13 Average Overweight (x) . | . 1 2 2 1 1 . . . . 1 1 . . . . . . . . Largest Inventory Capacity 20 | 8 20 20 20 20 20 20 5 5 20 15 20 20 15 20 20 20 20 20 20 Average Capacity 17 | 7 18 20 20 20 20 14 5 5 14 15 16 18 15 19 20 20 20 20 20 Most Carried 20 | 6 20 20 20 20 20 19 5 5 15 15 19 20 15 20 20 20 20 20 20 Average Carried 16 | 3 13 19 19 19 19 14 5 4 13 14 16 17 14 19 19 20 19 20 19 Final Capacity 20 | 8 20 20 20 20 20 5 5 5 15 15 20 15 15 20 20 20 20 20 20 Final Carried 20 | 5 20 20 20 20 20 5 5 4 13 15 19 15 15 20 20 20 20 20 20 Class Distribution -------------------- 27% | Mutant 19% | Hacker-Mutant 19% | Hacker-Scout 9% | Scavenger-Mutant 5% | Scavenger-Scout 4% | Scavenger-Skirmisher 3% | Wizard-Mutant Dominant Class ---------------- Mutant | -10/Materials Mutant | -10/Mines Mutant | -9/Materials Mutant | -9/Mines Scavenger-Skirmisher | -8/Materials Scavenger-Scout | -7/Factory Mutant | -7/Waste Scout | -7/Factory Hacker-Mutant | -6/Factory Hacker-Mutant | -6/Extension Hacker-Mutant | -6/Cetus Scavenger-Mutant | -6/Archives Scavenger-Scout | -6/Hub_04(d) Hacker-Scout | -5/Factory Hacker-Scout | -5/Upper Caves Hacker-Scout | -5/Upper Caves Hacker-Scout | -5/Zhirov Hacker-Scout | -4/Proximity Caves Wizard-Mutant | -4/Factory Resources | -11 -10 -10 -9 -9 -8 -7 -7 -7 -6 -6 -6 -6 -6 -5 -5 -5 -5 -4 -4 ----------- Run | Yrd Mat Min Mat Min Mat Fac Was Fac Fac Ext Cet Arc Hub Fac Upp Upp Zhi Pro Fac Matter Collected 8424 | 262 495 129 788 775 745 315 . 34 1200 807 239 428 132 640 293 119 174 10 839 Remotely . | . . . . . . . . . . . . . . . . . . . . Salvage Created 10352 | 38 598 86 1136 467 1705 286 . 34 2530 621 160 286 417 642 153 5 211 . 977 Parts 532 | 8 42 9 82 25 78 15 . 1 113 38 7 26 20 22 7 . . . 39 Haulers Intercepted 5 | . 2 . 1 . 1 . . . 1 . . . . . . . . . . Recyclers Shooed 17 | 1 1 . 2 1 1 . . 3 5 2 . . . 1 . . . . . Parts Field Recycled . | . . . . . . . . . . . . . . . . . . . . Retrieved Matter . | . . . . . . . . . . . . . . . . . . . . Parts Self-Destructed 2 | . . . . . . . . . . . . . . . 1 1 . . . Prevented 2 | . . . . . . . . . . . . . . . . 2 . . . Kills | -11 -10 -10 -9 -9 -8 -7 -7 -7 -6 -6 -6 -6 -6 -5 -5 -5 -5 -4 -4 ------- Run | Yrd Mat Min Mat Min Mat Fac Was Fac Fac Ext Cet Arc Hub Fac Upp Upp Zhi Pro Fac Combat Hostiles Destroyed 177 | . 11 6 30 31 27 2 . 1 26 11 2 . 3 1 5 1 . . 20 Guns 79 | . 11 6 15 6 20 2 . . 1 6 1 . 3 1 . . . . 7 Cannons 15 | . . . . . . . . . 7 4 . . . . . . . . 4 AOE 77 | . . . 15 25 7 . . . 15 . . . . . 5 1 . . 9 Classes Destroyed 20 | 1 7 . 4 3 1 1 . . 1 1 . . . . 1 . . . . Worker 28 | . 1 . 2 . 5 1 . . 9 . . . 5 3 . . . . 2 Builder 15 | . . . 1 1 2 . . . 9 1 . . 1 . . . . . . Tunneler 11 | 2 1 . 1 1 2 . . . 2 1 . . . 1 . . . . . Hauler 5 | . 2 . 1 . 1 . . . 1 . . . . . . . . . . Recycler 22 | . . . 1 2 4 2 . . 8 . . . 1 3 . . . . 1 Mechanic 3 | . 1 . . . . . . . 2 . . . . . . . . . . Operator 21 | . 2 . 2 . 3 1 . . . 3 . 8 . 2 . . . . . Watcher 11 | . 1 . 2 . 4 . . . . . 1 . 1 2 . . . . . Swarmer 60 | . 3 6 14 6 7 . . . 3 4 . . . . 5 . . . 12 Grunt 52 | . 8 . 6 4 14 . . . 12 2 1 . 3 . . 1 . . 1 Brawler 3 | . . . 1 . . . . . 1 . . . . . . . . . 1 Duelist 3 | . . . . 1 . . . . 1 . . . . . . . . . 1 Protector 1 | . . . . . . . . . 1 . . . . . . . . . . Sentry 23 | . . . 9 . 5 . . . 2 5 . . . . . . . . 2 Demolisher 1 | . . . . 1 . . . . . . . . . . . . . . . Hunter 5 | . . . . . 1 1 . . 3 . . . . . . . . . . Programmer 9 | . . . . . . 1 . 1 3 . . . . 1 . . . . 3 Behemoth 1 | . . . . . . . . . . 1 . . . . . . . . . Cetus Guard 1 | . . . . . . . . . . . 1 . . . . . . . . Samaritan 1 | . . . . . . . . . . . . . . . 1 . . . . Assembled 19 | . . . . 19 . . . . . . . . . . . . . . . Best Kill Streak 16 | 1 3 3 7 10 8 2 . 1 16 2 2 2 6 4 5 1 . . 6 Combat Bots Only 9 | . 3 3 7 9 4 1 . 1 6 2 1 . 2 1 5 1 . . 5 Max Kills in Single Turn 7 | 1 1 2 3 2 3 1 . 1 7 1 1 1 6 2 4 1 . . 4 Gunslinging 1 | . . 1 . . . . . . . . . . . . . . . . . Exploded 4 | . . . 3 2 2 . . . 2 . . . . . 4 1 . . 3 Melee . | . . . . . . . . . . . . . . . . . . . . Uniques/NPCs Destroyed . | . . . . . . . . . . . . . . . . . . . . Combat | -11 -10 -10 -9 -9 -8 -7 -7 -7 -6 -6 -6 -6 -6 -5 -5 -5 -5 -4 -4 -------- Run | Yrd Mat Min Mat Min Mat Fac Was Fac Fac Ext Cet Arc Hub Fac Upp Upp Zhi Pro Fac Hostile Shots Fired 1398 | . 77 19 97 54 109 115 . 78 204 229 25 10 11 8 4 1 . 1 356 Missed 455 | . 13 3 28 15 33 27 . 31 84 71 10 3 5 3 1 . . . 128 Hits 943 | . 64 16 69 39 76 88 . 47 120 158 15 7 6 5 3 1 . 1 228 Melee 13 | . . . 1 1 . . . . . . . . . . . . . . 11 Projectile 930 | . 64 16 68 38 76 88 . 47 120 158 15 7 6 5 3 1 . 1 217 AOE 3 | . . . . 2 . . . 1 . . . . . . . . . . . Critical Strikes 33 | . . . 3 . 2 2 . 3 2 . 1 1 . 1 1 . . 1 16 Actively Blocked 4 | . . . . . . . . . . . . . . . . . . . 4 Part Disruptions 5 | . . . . . . . . . . . . . . 3 . . . . 2 Damage Taken 14438 | . 758 131 870 656 1101 1062 . 847 1777 1648 417 194 187 312 83 18 . 22 4355 Core 3101 | . 162 24 113 118 217 223 . 469 350 224 53 . . 29 13 . . . 1106 Absorbed by Shields 133 | . . . . . . . . . 133 . . . . . . . . . . Redirected to Shielding 271 | . . . . . . . . . . . . . . . . . . . 271 Ignored by Resistances 11 | . . . . . . . . . . . . . . 11 . . . . . Regen/Repaired (Parts) 349 | . 26 . . . . . . . 106 . . . . 217 . . . . . Core Remaining (%) 49 | 100 . 25 . 42 60 . . 1 . . . . 26 . . . . 95 . Volleys Fired 849 | 5 76 15 81 43 135 38 . 15 107 66 11 41 16 79 28 5 . 6 82 Largest 2 | 2 2 2 2 2 2 2 . 1 2 2 2 2 2 2 1 1 . 1 2 Hottest 210 | 70 70 46 90 112 121 84 . 80 155 135 145 115 70 105 105 43 . 35 210 Shots Fired 1386 | 10 149 31 149 80 259 72 . 16 164 120 16 52 30 81 29 5 . 6 117 Gun 983 | 10 149 31 140 40 252 72 . . 54 77 9 52 30 17 . . . . 50 Cannon 302 | . . . . . . . . 15 88 41 4 . . 64 25 . . 6 59 Launcher 101 | . . . 9 40 7 . . 1 22 2 3 . . . 4 5 . . 8 Special . | . . . . . . . . . . . . . . . . . . . . Kinetic 729 | 5 113 31 111 30 84 65 . . 54 77 4 45 30 17 . . . . 63 Thermal 523 | 5 36 . . 10 168 7 . 15 88 41 5 7 . 64 25 . . 6 46 Explosive 72 | . . . 9 40 7 . . 1 6 . . . . . 4 5 . . . Electromagnetic 62 | . . . 29 . . . . . 16 2 7 . . . . . . . 8 Robot Hit Streak 19 | 5 15 3 9 6 10 10 . 5 11 19 4 7 10 4 5 2 . . 18 Robot Miss Streak 11 | 1 5 4 4 2 4 2 . 2 11 9 1 8 2 3 2 . . 1 3 Penetration Max 1 | . . . . . 1 1 . . . 1 . 1 1 . . . . . 1 Secondary Targets 7 | . 1 1 . 1 2 . . . . 1 . . 1 . . . . . . Max Gunslinging Chain 1 | . 1 1 . 1 1 . . . . 1 . . 1 . . . . . . Shots Hit Robots 740 | 7 86 15 97 29 154 27 . 10 86 82 11 30 17 26 4 1 5 . 53 Core Hits 527 | 2 36 6 58 52 78 9 . 1 125 65 11 14 17 14 6 4 . . 29 Critical Kills 12 | . . . . . 1 . . 1 2 1 1 3 1 . . . . . 2 Critical Parts Destroyed 15 | . . . 1 . . . . . . 1 . 6 3 1 . . 1 . 2 Critical Strikes 37 | . 2 . 1 . 6 1 . 1 2 2 1 10 4 2 . . 1 . 4 Burn 8 | . 2 . . . 5 1 . . . . . . . . . . . . . Meltdown 4 | . . . . . . . . 1 2 1 . . . . . . . . . Destroy 22 | . . . 1 . 1 . . . . 1 1 10 4 . . . . . 4 Smash 2 | . . . . . . . . . . . . . . 1 . . 1 . . Sever 1 | . . . . . . . . . . . . . . 1 . . . . . Melee Attacks 67 | . . . . . 2 24 . . . . . . . 30 1 . 5 . 5 Impact 16 | . . . . . . . . . . . . . . 5 1 . 5 . 5 Slashing 51 | . . . . . 2 24 . . . . . . . 25 . . . . . Piercing . | . . . . . . . . . . . . . . . . . . . . Sneak Attacks 12 | . . . . . . 3 . . . . . . . 6 1 . . . 2 Combat Hostiles . | . . . . . . . . . . . . . . . . . . . . Follow-up Attacks . | . . . . . . . . . . . . . . . . . . . . Damage Inflicted 26943 | 90 1068 239 2440 2315 3266 1039 . 278 5791 2113 676 1060 1339 1161 678 235 621 . 2534 Guns 11523 | 90 1068 239 1511 348 2736 715 . . 631 1086 208 1060 515 146 . . . . 1170 Cannons 3820 | . . . . . . . . 233 1628 1012 95 . . 231 31 . . . 590 Explosions 9524 | . . . 929 1967 530 . . 25 3504 15 373 . 824 104 508 235 . . 510 Melee 2012 | . . . . . . 324 . . . . . . . 680 139 . 621 . 248 Ramming 64 | . . . . . . . . 20 28 . . . . . . . . . 16 Kinetic 8826 | 65 831 239 1185 246 873 633 . . 631 1086 78 922 515 146 . . . . 1376 Thermal 6419 | 25 237 . 64 102 1863 82 . 233 1882 1012 135 138 . 231 31 . . . 384 Explosive 6367 | . . . 865 1967 530 . . 25 2237 . . . . . 508 235 . . . Electromagnetic 3255 | . . . 326 . . . . . 1013 15 463 . 824 104 . . . . 510 Impact 1173 | . . . . . . . . . . . . . . 165 139 . 621 . 248 Slashing 839 | . . . . . . 324 . . . . . . . 515 . . . . . Piercing . | . . . . . . . . . . . . . . . . . . . . Highest Corruption 28 | . 4 4 4 4 . 3 8 14 15 15 28 28 11 9 2 2 2 2 6 Average Corruption 7 | . 3 4 3 4 . 1 6 8 13 15 20 22 9 6 2 2 2 2 2 Corruption Purged 32 | . . . . . . . . 5 . . . 19 . 8 . . . . . Corruption Blocked . | . . . . . . . . . . . . . . . . . . . . Effects 402 | . 25 16 10 31 . 3 2 23 70 71 16 35 9 46 7 6 . 8 24 Message Errors 95 | . 7 6 2 9 . . . 5 14 18 3 8 1 9 1 3 . 2 7 Matter Fused 76 | . 2 4 3 7 . 1 . 5 13 12 4 8 3 9 1 1 . . 3 Heat Flow Errors 44 | . 3 2 1 4 . . 1 1 10 6 . 4 . 8 1 1 . . 2 Energy Discharges 49 | . 3 2 1 4 . . . 4 10 9 3 3 1 6 1 . . . 2 Parts Rejected 4 | . . . . . . . 1 1 1 1 . . . . . . . . . Parts Fused 5 | . . 1 . . . . . . 3 . . . . . . . . 1 . Data Loss (minor) 50 | . 7 . 2 3 . . . 3 5 6 3 7 2 6 2 . . 4 . Data Loss (major) 19 | . . . . 3 . 1 . 1 4 4 1 . . 3 . . . . 2 Misfires 21 | . 2 1 . . . . . 1 3 7 . 1 . 2 1 . . . 3 Alerts 15 | . 1 . . 1 . 1 . . 4 3 1 1 . 1 . 1 . 1 . Misdirections 5 | . . . . . . . . 2 1 1 1 . . . . . . . . Weapon Failures 19 | . . . 1 . . . . . 2 4 . 3 2 2 . . . . 5 Overload Shots 10 | . . . . . . . . . 4 5 . . . 1 . . . . . Effects 1 | . . . . . . . . . . 1 . . . . . . . . . Energy Bleed 1 | . . . . . . . . . . 1 . . . . . . . . . Overflow Damage 1355 | . . . 60 134 . 130 . . 44 37 1 . 52 268 113 . 339 . 177 Projectiles 116 | . . . . . . . . . 30 37 . . . 3 . . . . 46 Explosions 261 | . . . 60 134 . . . . 14 . 1 . 52 . . . . . . Melee 978 | . . . . . . 130 . . . . . . . 265 113 . 339 . 131 Knockbacks 11 | . . . . . . . . . 1 . . . . 1 . . 1 . 8 Impact 7 | . . . . . . . . . 1 . . . . 1 . . 1 . 4 Kinetic 3 | . . . . . . . . . . . . . . . . . . . 3 Secondary 1 | . . . . . . . . . . . . . . . . . . . 1 Self-Inflicted Damage 648 | . . . 42 148 . . . 45 176 6 . . 72 107 39 . . . 13 Shots 23 | . . . 2 4 . . . 1 9 1 . . 1 3 1 . . . 1 Rammed 7 | . . . . . . . . 4 3 . . . . . . . . . . Targets Rammed 10 | . . . . . . . . 4 3 . . . . . . . . . 3 Kicked 3 | . . . . . . . . . . . . . . . . . . . 3 Crushed . | . . . . . . . . . . . . . . . . . . . . Highest Temperature 320 | 27 248 279 310 308 117 49 221 147 262 266 273 253 22 262 201 92 . 5 320 Average Temperature 62 | 11 41 124 74 85 33 25 119 32 58 61 120 71 12 102 79 53 . 5 60 Received Heat Transfer 2881 | . 372 . 279 114 576 159 . 81 276 435 18 27 54 27 . 9 . 27 427 Effects 6 | . 1 . 4 . . . . . . . . . . . . . . . 1 Energy Bleed 3 | . 1 . 1 . . . . . . . . . . . . . . . 1 Interference 3 | . . . 3 . . . . . . . . . . . . . . . . Siege Activations . | . . . . . . . . . . . . . . . . . . . . Martial Activations . | . . . . . . . . . . . . . . . . . . . . Shielding Activations . | . . . . . . . . . . . . . . . . . . . . Robots Disrupted . | . . . . . . . . . . . . . . . . . . . . Combat Hostiles . | . . . . . . . . . . . . . . . . . . . . Robots Corrupted 9 | . . . . . . . . . 1 . 1 . . 1 1 . 3 . 2 Combat Hostiles 4 | . . . . . . . . . 1 . 1 . . . . . 2 . . Parts Fried 22 | . . . 3 . . . . . 4 . 1 . 1 3 . . 1 . 9 Impact Corruptions 26 | . . . . . . . . . . . . . . 4 4 . 14 . 4 Robots Melted 6 | . . . . . . . . 1 4 1 . . . . . . . . . Combat Hostiles 4 | . . . . . . . . 1 2 1 . . . . . . . . . Parts Melted 25 | . . . . . 5 . . 1 17 1 . . . . . . . . 1 Heat Transferred 11619 | 74 851 . 100 222 4292 222 . 372 2850 1420 148 185 . 450 50 . . . 383 Parts Sabotaged . | . . . . . . . . . . . . . . . . . . . . Parts Stolen . | . . . . . . . . . . . . . . . . . . . . Parts Stripped . | . . . . . . . . . . . . . . . . . . . . Power Chain Reactions 10 | . . . 2 . . . . . 6 . . . . 1 . . . . 1 Alert | -11 -10 -10 -9 -9 -8 -7 -7 -7 -6 -6 -6 -6 -6 -5 -5 -5 -5 -4 -4 ------- Run | Yrd Mat Min Mat Min Mat Fac Was Fac Fac Ext Cet Arc Hub Fac Upp Upp Zhi Pro Fac Maximum Alert Level 3 | . . . 2 1 1 . . . 3 3 2 1 1 . . . . . 1 Low Security (%) 66 | 100 100 100 20 46 89 100 100 100 54 10 . 75 98 100 . . . . 38 Level 1 24 | . . . 55 53 10 . . . 25 49 42 24 1 . . . . . 61 Level 2 4 | . . . 23 . . . . . 5 8 57 . . . . . . . . Level 3 4 | . . . . . . . . . 14 31 . . . . . . . . . Level 4 . | . . . . . . . . . . . . . . . . . . . . Level 5 . | . . . . . . . . . . . . . . . . . . . . High Security . | . . . . . . . . . . . . . . . . . . . . Max Security . | . . . . . . . . . . . . . . . . . . . . Peak Influence 915 | 5 70 65 571 327 340 140 . 79 915 815 452 243 320 182 . . . . 363 Initial 442 | . . . . 205 51 140 . . 34 442 427 165 11 156 . . . . . Average 160 | . 16 15 289 213 122 50 . 15 227 451 399 144 19 50 . . . . 191 Influence Increases 8653 | 10 370 162 985 457 887 280 . 347 1289 1373 226 202 378 475 115 110 15 . 972 Destroy 0b10 Robot/C 3760 | . 220 120 600 240 540 40 . 20 500 640 140 80 60 20 100 20 . . 420 Destroy 0b10 Robot/NC 620 | 10 35 . 50 20 105 20 . . 160 35 5 45 40 55 5 . 15 . 20 Destroy Leader 722 | . 46 20 156 40 130 20 . 10 122 82 10 . 2 4 10 . . . 70 Allied During Kill 571 | . . . . . . . . . . 471 70 19 5 . . . . . 6 Successful Hack 319 | . 36 7 16 . 18 33 . 84 45 19 . . 4 35 . . . . 22 Disable Machine 975 | . . . 90 30 15 30 . 15 225 60 . 45 135 180 . . . . 150 Destroy Structure 816 | . 3 . 58 127 49 17 . 8 147 21 1 13 132 136 . . . . 104 Partial Spotted 45 | . . . . . . 15 . 30 . . . . . . . . . . . Lose Combat Pursuer 825 | . 30 15 15 . 30 105 . 180 90 45 . . . 45 . 90 . . 180 Influence Decreases 8369 | 10 370 162 456 854 710 589 . 276 457 1513 576 582 91 795 29 168 43 . 688 Entered New Map 1887 | . . . . 324 81 169 . . 37 461 336 248 22 164 . 17 28 . . Time Decay 5050 | 10 348 162 436 490 559 377 . 216 295 542 160 294 49 519 29 151 15 . 398 Lost Part 684 | . 12 . 20 40 70 33 . 50 99 90 20 . . 10 . . . . 240 Lost Ally 354 | . 10 . . . . 10 . 10 26 120 60 40 16 12 . . . . 50 Purge Threat 394 | . . . . . . . . . . 300 . . 4 90 . . . . . Squads Dispatched 60 | . 1 . 1 2 4 5 . 7 13 3 1 . 3 12 . . . . 8 Investigation 22 | . . . . . 2 2 . 3 5 1 1 . . 5 . . . . 3 Extermination 18 | . . . . . . 2 . 2 4 . . . . 6 . . . . 4 Reinforcement 18 | . 1 . 1 2 2 1 . 1 3 2 . . 3 1 . . . . 1 Assault 1 | . . . . . . . . . 1 . . . . . . . . . . Garrison 1 | . . . . . . . . 1 . . . . . . . . . . . Intercept . | . . . . . . . . . . . . . . . . . . . . Searches Triggered . | . . . . . . . . . . . . . . . . . . . . Construction Impeded 5 | . . . . 2 . . . . 1 1 . . 1 . . . . . . Haulers Reinforced 1 | . . . . . . . . . 1 . . . . . . . . . . Active Scanning Responses . | . . . . . . . . . . . . . . . . . . . . Cargo Convoy Interrupts . | . . . . . . . . . . . . . . . . . . . . Stealth | -11 -10 -10 -9 -9 -8 -7 -7 -7 -6 -6 -6 -6 -6 -5 -5 -5 -5 -4 -4 --------- Run | Yrd Mat Min Mat Min Mat Fac Was Fac Fac Ext Cet Arc Hub Fac Upp Upp Zhi Pro Fac Distress Signals 25 | . 1 . 3 1 4 2 . 2 3 3 . . 3 1 . . . . 2 Communications Jammed . | . . . . . . . . . . . . . . . . . . . . Distress Signals . | . . . . . . . . . . . . . . . . . . . . Times Spotted 364 | . 29 7 38 34 48 17 3 20 39 33 7 20 6 14 1 4 . 3 41 Peak Tracking Total 7 | . 4 3 5 5 4 4 3 6 6 7 5 2 5 3 1 2 . 3 7 Tactical Retreats 31 | . 2 1 1 1 1 5 . 6 4 2 . . . 1 . 2 . 1 4 Traps | -11 -10 -10 -9 -9 -8 -7 -7 -7 -6 -6 -6 -6 -6 -5 -5 -5 -5 -4 -4 ------- Run | Yrd Mat Min Mat Min Mat Fac Was Fac Fac Ext Cet Arc Hub Fac Upp Upp Zhi Pro Fac Traps Triggered 27 | . 3 . 3 . 1 1 . 3 6 2 . . 1 3 . . . . 4 Indirectly 3 | . . . . . . . . . . . . . 1 1 . . . . 1 Trap Hack Attempts . | . . . . . . . . . . . . . . . . . . . . Triggered . | . . . . . . . . . . . . . . . . . . . . Disarmed 5 | . . . . . . . . . . . . . . 5 . . . . . Reprogrammed . | . . . . . . . . . . . . . . . . . . . . Reused . | . . . . . . . . . . . . . . . . . . . . Traps Extracted . | . . . . . . . . . . . . . . . . . . . . Installed . | . . . . . . . . . . . . . . . . . . . . Triggered . | . . . . . . . . . . . . . . . . . . . . Machines | -11 -10 -10 -9 -9 -8 -7 -7 -7 -6 -6 -6 -6 -6 -5 -5 -5 -5 -4 -4 ---------- Run | Yrd Mat Min Mat Min Mat Fac Was Fac Fac Ext Cet Arc Hub Fac Upp Upp Zhi Pro Fac Machines Disabled 68 | . . . 6 2 1 2 . 1 15 6 . 3 9 12 . . 1 . 10 Max in Single Turn 8 | . . . 1 1 1 1 . 1 3 1 . 1 8 5 . . 1 . 4 Garrison Access 5 | . . . . . 1 1 . . . . . . . 1 . . . . 2 Network Hub 1 | . . . . . . . . . . . . . 1 . . . . . . Machines Repaired . | . . . . . . . . . . . . . . . . . . . . Machines Dismantled . | . . . . . . . . . . . . . . . . . . . . Machines Sabotaged . | . . . . . . . . . . . . . . . . . . . . Overloaded Fab Kills . | . . . . . . . . . . . . . . . . . . . . Hacking | -11 -10 -10 -9 -9 -8 -7 -7 -7 -6 -6 -6 -6 -6 -5 -5 -5 -5 -4 -4 --------- Run | Yrd Mat Min Mat Min Mat Fac Was Fac Fac Ext Cet Arc Hub Fac Upp Upp Zhi Pro Fac Machines Accessed 108 | . 9 2 6 . 6 7 . 9 13 9 1 . 3 25 1 1 4 . 12 Terminals 63 | . 7 2 5 . 3 3 . 6 7 9 1 . 3 12 . . . . 5 Fabricators 14 | . . . . . . 1 . 3 3 . . . . 5 . . . . 2 Repair Stations 5 | . 1 . 1 . . 1 . . 1 . . . . 1 . . . . . Recycling Units 14 | . 1 . . . 2 1 . . 2 . . . . 6 . . . . 2 Scanalyzers 1 | . . . . . . . . . . . . . . . . . . . 1 Garrison Access 5 | . . . . . 1 1 . . . . . . . 1 . . . . 2 Total Hacks 351 | . 30 4 14 . 12 15 . 27 46 22 3 . 13 108 1 1 17 . 38 Successful 230 | . 19 1 5 . 6 5 . 12 29 11 . . 5 86 1 1 17 . 32 Failed 117 | . 10 3 9 . 6 10 . 15 17 10 3 . 8 21 . . . . 5 Catastrophic 18 | . 1 1 2 . . 2 . 4 3 2 . . 2 1 . . . . . Database Lockouts 4 | . 1 . . . . . . . . 1 . . . 1 . . . . 1 Manual 196 | . 16 4 11 . 5 10 . 21 26 10 . . 9 62 . . . . 22 Terminals 239 | . 23 4 12 . 8 9 . 19 30 22 3 . 13 70 . . . . 26 Fabricators 50 | . . . . . . 1 . 8 10 . . . . 24 . . . . 7 Repair Stations 16 | . 5 . 2 . . 1 . . 4 . . . . 4 . . . . . Recycling Units 20 | . 2 . . . 3 2 . . 2 . . . . 9 . . . . 2 Scanalyzers 1 | . . . . . . . . . . . . . . . . . . . 1 Garrison Access 6 | . . . . . 1 2 . . . . . . . 1 . . . . 2 Terminal Hacks 112 | . 8 1 1 . 2 . . 4 15 9 . . 4 33 1 1 17 . 16 Record 5 | . . . . . . . . . . . . . . . . . 5 . . Part Schematic 13 | . 1 1 . . . . . 1 3 . . . . 2 . . 4 . 1 Robot Analysis 6 | . . . . . . . . . . 1 . . . 1 . . 4 . . Prototype ID Bank 8 | . . . . . . . . . 1 . . . . 1 . . 4 . 2 Open Door 6 | . . . . . . . . . . 4 . . . . 1 1 . . . Level Access Points 1 | . . . . . . . . . . . . . 1 . . . . . . Branch Access Points 4 | . . . . . . . . 1 1 . . . . 1 . . . . 1 Machine Index 2 | . . . . . . . . . . . . . . 1 . . . . 1 Terminal Index 4 | . 1 . . . . . . 1 1 . . . . 1 . . . . . Fabricator Index 1 | . . . . . . . . . 1 . . . . . . . . . . Alert Level 2 | . . . . . 1 . . . . . . . . 1 . . . . . Unreport Threat 8 | . . . . . . . . 1 . 2 . . 1 4 . . . . . Locate Traps 22 | . 3 . . . . . . . 5 1 . . 1 8 . . . . 4 Disarm Traps 1 | . . . . . . . . . . . . . . 1 . . . . . Recall Investigation 2 | . . . . . . . . . . 1 . . . . . . . . 1 Recall Extermination 6 | . . . . . . . . . . . . . . 3 . . . . 3 Registered Components 2 | . . . . . . . . . 1 . . . . 1 . . . . . Registered Prototypes 1 | . . . . . . . . . . . . . . 1 . . . . . Zone Layout 18 | . 3 . 1 . 1 . . . 2 . . . 1 7 . . . . 3 Fabricator Hacks 25 | . . . . . . 1 . 2 3 . . . . 15 . . . . 4 Network Status 2 | . . . . . . 1 . 1 . . . . . . . . . . . Load Schematic 17 | . . . . . . . . 1 3 . . . . 10 . . . . 3 Build 6 | . . . . . . . . . . . . . . 5 . . . . 1 Repair Station Hacks 11 | . 4 . 1 . . . . . 2 . . . . 4 . . . . . Scan Component 7 | . 3 . 1 . . . . . 1 . . . . 2 . . . . . Repair 4 | . 1 . . . . . . . 1 . . . . 2 . . . . . Recycling Unit Hacks 15 | . 2 . . . 1 . . . 2 . . . . 8 . . . . 2 Retrieve Components 15 | . 2 . . . 1 . . . 2 . . . . 8 . . . . 2 Scanalyzer 1 | . . . . . . . . . . . . . . . . . . . 1 Insert Component 1 | . . . . . . . . . . . . . . . . . . . 1 Garrison Access Hacks 5 | . . . . . 1 1 . . . . . . . 1 . . . . 2 Seal Access 5 | . . . . . 1 1 . . . . . . . 1 . . . . 2 Unauthorized Hacks 61 | . 5 . 3 . 2 3 . 6 7 2 . . 1 25 . . . . 7 Terminals 46 | . 5 . 3 . 2 3 . 4 4 2 . . 1 18 . . . . 4 Track 8 | . . . . . . . . . 1 . . . . 6 . . . . 1 Assimilate 10 | . 2 . . . . 2 . 1 . 1 . . . 4 . . . . . Botnet 18 | . 2 . 2 . 1 1 . 2 2 . . . 1 5 . . . . 2 Disrupt 3 | . . . . . . . . . . 1 . . . 2 . . . . . Operators 7 | . 1 . 1 . 1 . . 1 1 . . . . 1 . . . . 1 Fabricators 15 | . . . . . . . . 2 3 . . . . 7 . . . . 3 Prioritize 4 | . . . . . . . . . . . . . . 3 . . . . 1 Fabnet 2 | . . . . . . . . 2 . . . . . . . . . . . Recompile 9 | . . . . . . . . . 3 . . . . 4 . . . . 2 Repair Stations . | . . . . . . . . . . . . . . . . . . . . Recycling Units . | . . . . . . . . . . . . . . . . . . . . Scanalyzers . | . . . . . . . . . . . . . . . . . . . . Garrison Access . | . . . . . . . . . . . . . . . . . . . . Data Cores Recovered 1 | . . . . . 1 . . . . . . . . . . . . . . Used . | . . . . . . . . . . . . . . . . . . . . Hacking Detections 72 | . 7 2 6 . 4 6 . 6 9 5 1 . 3 17 . . . . 6 Full Trace Events 9 | . . . . . 1 2 . 3 . 1 1 . . 1 . . . . . Feedback Events 2 | . . . . . . . . . . 1 1 . . . . . . . . Corruption 1 | . . . . . . . . . . . 1 . . . . . . . . Hackware Fried 1 | . . . . . . . . . . 1 . . . . . . . . . Feedback Blocked . | . . . . . . . . . . . . . . . . . . . . Robot Schematics Acquired . | . . . . . . . . . . . . . . . . . . . . Robots Built . | . . . . . . . . . . . . . . . . . . . . Authchips . | . . . . . . . . . . . . . . . . . . . . Time . | . . . . . . . . . . . . . . . . . . . . Total Robot Build Rating . | . . . . . . . . . . . . . . . . . . . . Part Schematics Acquired 13 | . 1 1 . . . . . 1 3 . . . . 2 . . 4 . 1 Parts Built 5 | . . . . . . . . . . . . . . 4 . . . . 1 Authchips 6 | . . . . . . . . . . . . . . 5 . . . . 1 Time 353 | . . . . . . . . . . . . . . 251 . . . . 102 Total Part Build Rating 28 | . . . . . . . . . . . . . . 20 . . . . 8 Parts Repaired 4 | . 1 . . . . . . . 1 . . . . 2 . . . . . Time 164 | . 26 . . . . . . . 40 . . . . 98 . . . . . Parts Recycled . | . . . . . . . . . . . . . . . . . . . . Recycled Matter . | . . . . . . . . . . . . . . . . . . . . Retrieved Matter . | . . . . . . . . . . . . . . . . . . . . Retrieved Components 44 | . 4 . . . 9 . . . 2 . . . . 18 . . . . 11 Parts Scanalyzed . | . . . . . . . . . . . . . . . . . . . . Part Schematics Acquired . | . . . . . . . . . . . . . . . . . . . . Parts Damaged . | . . . . . . . . . . . . . . . . . . . . Bothacking | -11 -10 -10 -9 -9 -8 -7 -7 -7 -6 -6 -6 -6 -6 -5 -5 -5 -5 -4 -4 ------------ Run | Yrd Mat Min Mat Min Mat Fac Was Fac Fac Ext Cet Arc Hub Fac Upp Upp Zhi Pro Fac Used RIF Installer . | . . . . . . . . . . . . . . . . . . . . Robots Hacked 4 | . . . . . . . . . 2 2 . . . . . . . . . Non-combat . | . . . . . . . . . . . . . . . . . . . . Combat 4 | . . . . . . . . . 2 2 . . . . . . . . . Robot Hacks Applied . | . . . . . . . . . . . . . . . . . . . . Relay Couplers Released . | . . . . . . . . . . . . . . . . . . . . Fabnet Peak Effective % 6 | . . . . . . . . . 6 6 6 6 6 2 2 2 2 . . Autooverrided 4 | . . . . . . . . . 2 2 . . . . . . . . . Robots Rewired 7 | . . . . . . . . . . 6 . . . . . . . . 1 Allies Hacked . | . . . . . . . . . . . . . . . . . . . . Hacks Repelled . | . . . . . . . . . . . . . . . . . . . . Allies | -11 -10 -10 -9 -9 -8 -7 -7 -7 -6 -6 -6 -6 -6 -5 -5 -5 -5 -4 -4 -------- Run | Yrd Mat Min Mat Min Mat Fac Was Fac Fac Ext Cet Arc Hub Fac Upp Upp Zhi Pro Fac Total Allies 27 | . 2 . . . . 1 . 1 2 17 . . . 3 . . . . 1 Largest Group 10 | . 1 . . . . 1 . 1 1 10 8 4 2 1 1 . . . 1 Highest-Rated Group 320 | . 10 . . . . 10 . 26 29 320 261 127 55 26 10 . . . 49 Highest-Rated Ally 85 | . 10 . . . . 10 . 26 29 85 39 39 29 26 10 . . . 49 Total Orders 4 | . . . . . . . . . 1 . . . . . 2 . . . 1 STAY 2 | . . . . . . . . . . . . . . . 2 . . . . EXPLORE 2 | . . . . . . . . . 1 . . . . . . . . . 1 Ally Attacks 251 | . . . . . . . . . 6 158 45 31 4 . . . . . 7 Total Damage 4275 | . . . . . . . . . 70 2803 625 553 22 . . . . . 202 Kills 36 | . . . . . . . . . . 24 5 5 . . . . . . 2 Allies Corrupted . | . . . . . . . . . . . . . . . . . . . . Allies Melted . | . . . . . . . . . . . . . . . . . . . . Intel | -11 -10 -10 -9 -9 -8 -7 -7 -7 -6 -6 -6 -6 -6 -5 -5 -5 -5 -4 -4 ------- Run | Yrd Mat Min Mat Min Mat Fac Was Fac Fac Ext Cet Arc Hub Fac Upp Upp Zhi Pro Fac Active Infowar (turns) 17120 | 45 1406 775 1052 1210 1651 950 43 740 1740 785 263 643 185 2344 705 579 109 431 1464 Optics 9811 | . . . . 825 1651 950 43 527 . 115 263 643 185 2344 705 579 109 431 441 Sensors 9708 | . . . . . 937 801 . 739 1045 783 8 64 185 2032 673 579 105 431 1326 IFF 572 | . . . . . . . . . 572 . . . . . . . . . . Terrain 900 | . . . . . . . . . 900 . . . . . . . . . . Traps 1 | . . . . . . . . . . . . . . . 1 . . . . Seismic 3663 | 45 1406 775 1052 385 . . . . . . . . . . . . . . . Jamming 138 | . . . . . . . . . . . . . . . . . . . 138 ECM 2 | . . . . . . . . . . . . . . 2 . . . . . Robot Analysis Total 6 | . . . . . . . . . . 1 . . . 1 . . 4 . . Derelict Logs Recovered 7 | . . 1 . 1 . . . . . . . . . . 1 3 . 1 . Drone Launches 5 | . . . . . . . . . 2 . . . . . . . . . 3 Drone Recoveries . | . . . . . . . . . . . . . . . . . . . . Exploration | -11 -10 -10 -9 -9 -8 -7 -7 -7 -6 -6 -6 -6 -6 -5 -5 -5 -5 -4 -4 ------------- Run | Yrd Mat Min Mat Min Mat Fac Was Fac Fac Ext Cet Arc Hub Fac Upp Upp Zhi Pro Fac Turns Passed 18806 | 110 1496 775 1101 1289 1651 950 43 769 1884 1558 327 643 185 2344 705 579 109 431 1857 Spaces Moved 17202 | 71 999 646 605 735 974 1176 86 1125 1585 911 136 214 216 3111 969 898 162 528 2055 Core 463 | 2 . . . . . 49 86 197 127 . . . . . . . . . 2 Treads 202 | . . . . . . . . . . . 77 125 . . . . . . . Legs 162 | . . . . . . . . . . . . . . . . . . . 162 Wheels 5130 | 69 999 646 605 735 974 . . . 1102 . . . . . . . . . . Hover 10441 | . . . . . . 1127 . 124 356 911 59 89 216 3111 969 898 162 528 1891 Flight 804 | . . . . . . . . 804 . . . . . . . . . . . Fastest Speed 35 | 50 100 110 110 105 95 44 50 35 38 42 160 42 42 38 48 48 48 48 48 Average Speed 73 | 98 109 110 121 112 97 49 50 42 85 116 192 135 42 45 50 48 48 48 64 Slowest Speed 700 | 100 130 110 145 120 110 117 50 150 150 320 300 580 42 98 98 48 48 48 700 Overloaded Moves . | . . . . . . . . . . . . . . . . . . . . Propulsion Burnouts . | . . . . . . . . . . . . . . . . . . . . Robots Hopped 22 | . . . . . . . . 22 . . . . . . . . . . . Potential Cave-ins . | . . . . . . . . . . . . . . . . . . . . Cave-ins Triggered . | . . . . . . . . . . . . . . . . . . . . Teleports 1 | . . . . . . . . . . . . . . . . . . . 1 Exploration Rate (%) 63 | 5 99 99 45 97 58 23 75 36 37 91 54 93 25 65 97 94 61 68 39 Regions Visited 19 Branch Regions 10 Pre-discovered Areas 4 | . . . . . . . . . . . . . . . 1 . 3 . . Known Exits Taken 12 | . . . . . 1 . . 1 1 1 1 1 1 1 1 1 1 1 . Unknown Exits Taken 5 | 1 1 1 1 1 . . . . . . . . . . . . . . . Scrap Searched 13 | . . 1 . 2 . . . . . . . . . . 5 1 . 4 . Spaces Dug 189 | . . . 18 45 2 16 . . 8 1 . . . 48 12 13 . 3 23 Terrain Destroyed 995 | . . . 59 224 55 16 . 7 157 10 . 16 177 77 66 71 . 6 54 Melee 35 | . . . . . 2 15 . . . . . . . 16 . . . . 2 Projectile 209 | . . . . . 1 . . . 26 10 . 16 15 61 23 . . 6 51 AOE 750 | . . . 59 224 52 . . 7 131 . . . 162 . 43 71 . . 1 Terrain Rammed . | . . . . . . . . . . . . . . . . . . . . Walls Destroyed . | . . . . . . . . . . . . . . . . . . . . Machines Disabled . | . . . . . . . . . . . . . . . . . . . . Actions | -11 -10 -10 -9 -9 -8 -7 -7 -7 -6 -6 -6 -6 -6 -5 -5 -5 -5 -4 -4 --------- Run | Yrd Mat Min Mat Min Mat Fac Was Fac Fac Ext Cet Arc Hub Fac Upp Upp Zhi Pro Fac Total 21882 | 98 1255 682 822 1111 1407 1445 85 1376 1930 1293 181 521 278 3904 1140 1037 180 699 2438 Wait 2852 | 10 120 16 69 306 227 127 . 229 133 219 19 220 42 547 121 131 . 166 150 Move 17141 | 70 998 645 604 734 973 1176 85 1081 1584 910 135 213 215 3110 968 897 161 527 2055 Hop 21 | . . . . . . . . 21 . . . . . . . . . . . Pick Up 216 | 6 28 1 16 3 10 16 . 6 34 11 5 11 1 40 2 . 2 . 24 Fast Attach 67 | 6 1 . 3 . 5 1 . 9 14 4 1 6 . 5 . . 2 . 10 Attach 76 | 1 5 . 4 4 3 5 . 3 16 3 1 2 . 9 1 . . . 19 Detach 16 | . . . . . . 2 . . 2 . . . . 3 . . . . 9 Swap 305 | . 14 2 28 18 35 24 . . 23 15 8 11 2 46 18 4 7 . 50 Drop 191 | . 13 3 17 3 17 32 . 8 14 8 1 17 2 35 1 . 3 . 17 Fire 849 | 5 76 15 81 43 135 38 . 15 107 66 11 41 16 79 28 5 . 6 82 Melee 67 | . . . . . 2 24 . . . . . . . 30 1 . 5 . 5 Ram 7 | . . . . . . . . 4 3 . . . . . . . . . . Kick 3 | . . . . . . . . . . . . . . . . . . . 3 Crush . | . . . . . . . . . . . . . . . . . . . . Escape Stasis 39 | . . . . . . . . . . 26 . . . . . . . . 13 Rewire 32 | . . . . . . . . . . 31 . . . . . . . . 1 Trap . | . . . . . . . . . . . . . . . . . . . . Miscellaneous . | . . . . . . . . . . . . . . . . . . . . Route ------- -11/Scrapyard -10/Materials (discovered 6 exits: *Mat x3 / *Min x2 / [*Sub]) -10/Mines (discovered 4 exits: *Mat x2 / [*Exi] / [*Sub]) -9/Materials (discovered 2 exits: *Mat / [*Min]) -9/Mines (discovered 2 exits: *Mat x2) -8/Materials -7/Factory (discovered 2 exits: Sto / *Low) -7/Waste -7/Factory (discovered 5 exits: *Fac x2 / Sto / Low x2) -6/Factory (discovered 5 exits: *Fac / *Low x2 / *Ext x2) -6/Extension (discovered 2 exits: *Fac / *Cet) -6/Cetus -6/Archives (discovered 3 exits: *Fac / *Hub x2) -6/Hub_04(d) (discovered 4 exits: *Fac x4) -5/Factory (discovered 3 exits: *Fac / *Upp x2) -5/Upper Caves -5/Upper Caves (discovered 2 exits: *Fac / *Zhi) -5/Zhirov -4/Proximity Caves -4/Factory (discovered 3 exits: [Res] / *Upp x2) History --------- Turn | Location | Event 7 | -11/Scrapyard | Discovered new exit (range 15) 111 | -11/Scrapyard | Entered Materials 251 | -10/Materials | Central database locked down 316 | -10/Materials | Build established: Mutant 384 | -10/Materials | Discovered new exit (range 15) 511 | -10/Materials | Discovered new exit (range 14) 770 | -10/Materials | Discovered new exit (range 9) 840 | -10/Materials | Discovered new exit (range 11) 875 | -10/Materials | Discovered new exit (range 7) 875 | -10/Materials | Discovered new exit (range 12) 912 | -10/Materials | Core integrity fell below 50% 956 | -10/Materials | Lost 4 parts (1p2n1w) 1269 | -10/Materials | Repaired Com. Wheel 1607 | -10/Materials | Entered Mines 2010 | -10/Mines | Discovered new exit (range 14) 2165 | -10/Mines | Discovered new exit (range 11) 2166 | -10/Mines | Discovered new exit (range 9) 2282 | -10/Mines | Learned Materials emergency access door positions 2362 | -10/Mines | Deemed a non-threat by the Exiles lab entrance 2363 | -10/Mines | Discovered new exit (range 5) 2382 | -10/Mines | Entered Materials 2382 | -9/Materials | Evolved 2 slots: Utility x2 2578 | -9/Materials | Discovered new exit (range 16) 3036 | -9/Materials | Discovered new exit (range 16) 3245 | -9/Materials | Destroyed 7 combat bots 3483 | -9/Materials | Entered Mines 3525 | -9/Mines | Discovered new exit (range 13) 3868 | -9/Mines | Assembled infested the area 3873 | -9/Mines | Assisted by a Guerilla fighting off Assembled 3916 | -9/Mines | Discovered new exit (range 7) 3966 | -9/Mines | Lost 3 parts (1p2u) 4016 | -9/Mines | Destroyed 9 combat bots 4358 | -9/Mines | Core integrity fell below 50% 4772 | -9/Mines | Entered Materials 4772 | -8/Materials | Evolved 2 slots: Propulsion x2 4989 | -8/Materials | Lost 3 parts (1p2n) 5077 | -8/Materials | Build established: Scavenger-Mutant 5404 | -8/Materials | Discovered new exit (range 12) 5883 | -8/Materials | Build established: Scavenger-Skirmisher 6408 | -8/Materials | Identified exit to Factory 6423 | -8/Materials | Entered Factory 6423 | -7/Factory | Evolved 2 slots: Propulsion x1, Utility x1 6424 | -7/Factory | Identified exit to Storage 6602 | -7/Factory | Discovered new exit (range 14) 6655 | -7/Factory | Identified exit to Lower Caves 6735 | -7/Factory | Build established: Scavenger-Scout 7373 | -7/Factory | Manually triggered Chute Trap 7373 | -7/Factory | Sucked down chute 7373 | -7/Factory | Entered Waste 7376 | -7/Waste | Lost 7 parts (1p5n1u) 7377 | -7/Waste | Spotted C-40 Crusher 7383 | -7/Waste | Spotted C-40 Crusher 7384 | -7/Waste | Spotted C-40 Crusher 7388 | -7/Waste | EMP discharged 7398 | -7/Waste | Spotted C-40 Crusher 7399 | -7/Waste | Spotted C-40 Crusher 7400 | -7/Waste | Spotted C-40 Crusher 7409 | -7/Waste | Discovered new exit (range 11) 7416 | -7/Waste | Identified exit to Factory 7416 | -7/Waste | Entered Factory 7707 | -7/Factory | Build established: Scout 7825 | -7/Factory | Discovered new exit (range 16) 7827 | -7/Factory | Core integrity fell below 50% 7944 | -7/Factory | System corruption reached 10% 7956 | -7/Factory | Garrison activated, responded to threat 7976 | -7/Factory | Lost 3 parts (2n1u) 8071 | -7/Factory | Core integrity fell below 20% 8172 | -7/Factory | Discovered new exit (range 6) 8174 | -7/Factory | Identified exit to Factory 8185 | -7/Factory | Entered another Factory area 8185 | -6/Factory | Evolved 2 slots: Utility x2 8232 | -6/Factory | Build established: Mutant 8437 | -6/Factory | Discovered new exit (range 10) 8445 | -6/Factory | Identified exit to Lower Caves 8453 | -6/Factory | System corruption reached 10% 8480 | -6/Factory | Found Prototype Launcher 8583 | -6/Factory | Build established: Scavenger-Mutant 8963 | -6/Factory | Build established: Hacker-Mutant 9155 | -6/Factory | Discovered exit to Lower Caves (range 6) 9175 | -6/Factory | Identified Scatter Rocket Array 9214 | -6/Factory | Identified exit to Extension 9681 | -6/Factory | Repaired Cld. Plasma Cannon? 9829 | -6/Factory | Discovered new exit (range 3) 9830 | -6/Factory | Identified exit to Factory 9935 | -6/Factory | First assault squad dispatched 10069 | -6/Factory | Entered Extension 10094 | -6/Extension | Rescued a captive Derelict 10094 | -6/Extension | Rescued a captive Derelict 10106 | -6/Extension | Imp. Hacking Suite fried by hacking feedback 10153 | -6/Extension | Rescued a captive Derelict 10163 | -6/Extension | Central database locked down 10183 | -6/Extension | Rescued a captive Derelict 10184 | -6/Extension | Rescued a captive Derelict 10218 | -6/Extension | Rescued a captive Derelict 10219 | -6/Extension | Rescued a captive Derelict 10276 | -6/Extension | Local machine network offline 10322 | -6/Extension | Rescued a captive Derelict 10323 | -6/Extension | Rescued a captive Derelict 10676 | -6/Extension | Spotted B-75 Beast 10689 | -6/Extension | Destroyed B-75 Beast 10775 | -6/Extension | Core integrity fell below 50% 10944 | -6/Extension | Disrupted transfer network 11170 | -6/Extension | Lost 3 parts (1p1n1u) 11493 | -6/Extension | Discovered exit to Factory (range 10) 11494 | -6/Extension | Discovered new exit (range 6) 11511 | -6/Extension | Identified exit to Cetus 11627 | -6/Extension | Entered Cetus 11627 | -6/Cetus | Accompanied by 8 allies 11652 | -6/Cetus | Spotted Cetus Guard 11652 | -6/Cetus | Spotted Cetus Guard 11652 | -6/Cetus | Spotted Cetus Guard 11652 | -6/Cetus | Spotted Cetus Guard 11667 | -6/Cetus | Allies destroyed Cetus Guard 11671 | -6/Cetus | Destroyed Cetus Guard 11672 | -6/Cetus | Allies destroyed Cetus Guard 11679 | -6/Cetus | Allies destroyed Cetus Guard 11697 | -6/Cetus | Lost 3 allies 11914 | -6/Cetus | Discovered new exit (range 22) 11950 | -6/Cetus | Identified exit to Archives 11954 | -6/Cetus | Entered Archives 11954 | -6/Archives | Accompanied by 4 allies 12007 | -6/Archives | Discovered new exit (range 22) 12067 | -6/Archives | Discovered exit to Factory (range 14) 12218 | -6/Archives | Discovered new exit (range 22) 12394 | -6/Archives | Build established: Scavenger-Mutant 12587 | -6/Archives | Identified exit to Hub_04(d) 12597 | -6/Archives | Entered Hub_04(d) 12597 | -6/Hub_04(d) | Accompanied by 2 allies 12779 | -6/Hub_04(d) | Network Hub disabled 12782 | -6/Hub_04(d) | Entered Factory 12782 | -5/Factory | Evolved 2 slots: Propulsion x1, Utility x1 13016 | -5/Factory | Identified exit to Upper Caves 13031 | -5/Factory | Discovered new exit (range 21) 13040 | -5/Factory | Identified exit to Factory 13229 | -5/Factory | Build established: Hacker-Scout 13586 | -5/Factory | Repaired Adv. KE Penetrator? 13656 | -5/Factory | Repaired Adv. KE Penetrator 13776 | -5/Factory | Central database locked down 13900 | -5/Factory | Fabricated Exp. Utility Shielding? 14435 | -5/Factory | Noticed a derelict Sapper rigging charges 14616 | -5/Factory | Fabricated Exp. Utility Shielding? 14854 | -5/Factory | Fabricated Exp. Targeting Computer? 14884 | -5/Factory | Fabricated Exp. Targeting Computer (x1) 15126 | -5/Factory | Entered Upper Caves 15126 | -5/Upper Caves | Accompanied by 1 ally 15475 | -5/Upper Caves | Spotted B-75 Beast 15753 | -5/Upper Caves | Discovered new exit (range 8) 15757 | -5/Upper Caves | Identified exit to Upper Caves 15831 | -5/Upper Caves | Entered another Upper Caves area 15833 | -5/Upper Caves | Encountered a Warlord checkpoint 15835 | -5/Upper Caves | Learned Factory stockpile data 15860 | -5/Upper Caves | Discovered exit to Factory (range 10) 16052 | -5/Upper Caves | Spotted B-75 Beast 16061 | -5/Upper Caves | Learned Factory terminal intel 16119 | -5/Upper Caves | Learned 4 Factory zone layouts 16354 | -5/Upper Caves | Discovered new exit (range 21) 16371 | -5/Upper Caves | Identified exit to Zhirov 16410 | -5/Upper Caves | Entered Zhirov 16410 | -5/Zhirov | Discovered new exit (range 3) 16411 | -5/Zhirov | Identified exit to Proximity Caves 16420 | -5/Zhirov | Met Zhirov 16430 | -5/Zhirov | Learned location of Quarantine (-2) 16430 | -5/Zhirov | Learned location of Testing (-3) 16430 | -5/Zhirov | Learned location of Command (-1) 16435 | -5/Zhirov | Zhirov requested help retrieving the SGEMP Prototype 16442 | -5/Zhirov | Found Alien Artifact 16442 | -5/Zhirov | Identified Integrated Reactor 16442 | -5/Zhirov | Installed Integrated Reactor, increased core energy generation (+10) 16497 | -5/Zhirov | Found Alien Artifact 16519 | -5/Zhirov | Entered Proximity Caves 16814 | -4/Proximity Caves | Learned Research terminal intel 16943 | -4/Proximity Caves | Discovered exit to Factory (range 11) 16950 | -4/Proximity Caves | Entered Factory 16950 | -4/Factory | Evolved 2 slots: Power x1, Utility x1 16953 | -4/Factory | Loaded intel: 23 terminal locations 17100 | -4/Factory | Discovered new exit (range 16) 17113 | -4/Factory | Identified Transdimensional Reconstructor 17143 | -4/Factory | Identified exit to Upper Caves 17424 | -4/Factory | Found Prototype Launcher 17424 | -4/Factory | Identified Com. Tesla Bomb Launcher 17728 | -4/Factory | Build established: Wizard-Mutant 17746 | -4/Factory | Discovered new exit (range 18) 17746 | -4/Factory | Central database locked down 18002 | -4/Factory | Fabricated Exp. Sensor Array? 18272 | -4/Factory | Build established: Hacker-Mutant 18379 | -4/Factory | Lost 3 parts (1p1n1w) 18509 | -4/Factory | Lost 4 parts (2n1u1w) 18581 | -4/Factory | Warped through subspace 18726 | -4/Factory | Core integrity fell below 50% 18793 | -4/Factory | Core integrity fell below 20% 18807 | -4/Factory | Destroyed by G-67 Veteran with Plasma Rifle Last Messages --------------- 18771_ Med. Treads severed. 18772_ P-70 Sage heat damages Mic. Fission Core. 18772_ A-15 Conveyor system corruption misinterpreted. 18772_ A-15 Conveyor triggered Blade Trap. 18772_ Massive razor-sharp blades shoot up from within the floor. 18772_ Med. Treads severed. 18772_ Imp. Ion Engine severed. 18772_ Adv. Weight Redist. System severed. 18773_ P-70 Sage heat damages Broken Antigrav System. 18773_ Hacking Suite destroyed. 18774_ Adv. Myomer Leg destroyed. 18777_ Adv. Reaction Control System destroyed. 18778_ System corrupted: Matter fused (-10). 18780_ R-10 Processor collects Adv. Weight Redist. System. 18783_ R-10 Processor collects Med. Treads. 18786_ R-10 Processor collects Imp. Ion Engine. 18793_ Enh. Armored Leg destroyed. 18793_ Imp. Hacking Suite destroyed. 18800_ RJ%H3ZVDC04XAKDJJPATAMIVRK03 18803_ Adv. Signal Interpreter destroyed. Map ----- +----------------------------------------------------+ | ?????????????????????????????????????????????? | | ?????????????????????????????????????????????? | | ?????????????????????????????????????????????? | | ?????????????????????????????????????????????? | | ?????????????????????????????????????????????? | | ?????????????????????????????????????????????? | | ?????????????????????????????????????????????? | | ?????????????????????????????????????????????? | | ?????????????????????????????????????????????? | | ?????????????????????????????????????????????? | | ????????????????????? ?????????????????????? | | ????????????????????? ???????????????????? | | ????????????????????? #??????????????????? | | ????????????????????? #??????????????????? | | ????????????????????? #??????????????????? | | ????????????????????? #??????????????????? | | ????????????????????# ########???????????? | | ???????????????????? ????????????? | | ???????????????????? ?????????????? | | ???????????????????? ??????????????? | | ???????????????????? ????????????????? | | ???????????????????? ?????????????????? | | ???????????????????## #??????????????????? | | ??????????????????? # #??????????????????? | | ?????????????????"" # #??????????????????? | | ?????????????????"" #@ #??????????????????? | | ?????????????????"" # #??????????????????? | | ???????????????? # #??????????????????? | | ???????????????""" # #??????????????????? | | ????????????????"" # #??????????????????? | | ????????????????"" # #??????????????????? | | ????????????????? !# #??????????????????? | | ????????????????? #gg #??????????????????? | | ?????????????????? # gp #??????????????????? | | ?????????????????? #= ^ #??????????????????? | | ???????????????#+##+# #??????????????????? | | ???????????????# #??????????????????? | | ???????????????#] #??????????????????? | | ???????????????# #??????????????????? | | ???????????????# #??????????????????? | | ???????????????# +??????????????????? | | ???????????????# !!| #??????????????????? | | ????????######## !! #??????????????????? | | ????????# # !! #??????????????????? | | ????????# # # ?????????????? | | ????????# !" ! + ?????????????? | | ????????#! !=%# ####???????????????? | | ????????# # ????????????? | | ????????# ! ! # ????????????? | | ????????###"#### ##"##+###### ??????????????? | +----------------------------------------------------+ Best States ------------- Heat Dissipation 59 Energy Generation 38 Energy Capacity 350 Matter Stores 300 Matter Capacity 300 Sight Range 22 Robot Scan Range 20 Terrain Scan Range 16 Terrain Scan Density 10 Jamming Range 14 Power Amplification 20 Armor Coverage 375 Resistance: EM 25 Utility Shielding 90 Evasion (%) 67 Recoil Reduction 2 Offensive Hacking 74 Defensive Hacking 12 Authchip Count 4 Item Schematics ----------------- Hcp. Storage Unit | -10/Materials | Hacked Huge Storage Unit | -10/Mines | Hacked Hvy. Machine Gun | -7/Factory | Hacked Hacking Suite | -6/Factory | Hacked Hvy. Reactive Plating | -6/Factory | Hacked Adv. Thermal Shield | -6/Factory | Hacked Exp. Targeting Computer | -5/Factory | Hacked Exp. Utility Shielding | -5/Factory | Hacked Assault Drone Bay | -5/Zhirov | Free Exp. Heat Sink | -5/Zhirov | Free Exp. Optical Array | -5/Zhirov | Free Imp. Arc Thrower | -5/Zhirov | Free Exp. Sensor Array | -4/Factory | Hacked Robot Schematics ------------------ None Fabricated ------------ Exp. Utility Shielding | x1 | -5/Factory | Authchip Exp. Utility Shielding | x1 | -5/Factory | Authchip Exp. Targeting Computer | x1 | -5/Factory | Authchip Exp. Targeting Computer | x1 | -5/Factory | Authchip Exp. Sensor Array | x1 | -4/Factory | Authchip Repaired ---------- Com. Wheel | 13% | -10/Materials Cld. Plasma Cannon | 29% | -6/Factory Adv. KE Penetrator | 38% | -5/Factory Adv. KE Penetrator | 53% | -5/Factory Alien Tech Used ----------------- Integrated Reactor Transdimensional Reconstructor Achievements -------------- None Challenges ------------ None Game ------ Seed ReactionAuthchipCharger Manual? 0 Play Time 03:50:07 Cumulative 427.0 hours Start 2025.06.17 @ 00:44:50 End 2025.06.18 @ 01:42:37 Sessions 5 Manual Loads 0 Difficulty Rogue Special Mode None Game No. 212 Rogue 212 Adventurer 0 Explorer 0 Win Type - Total 5 Types 5/0/0/0/0/0/0/0/0/0 Lore% 63 Gallery% 68 Achievement% 63 Wizard Run 0 Options --------- Layout 0 ASCII 0 Keyboard 1 Movement Vi Keybinds 0 Fullscreen 2 Font 18/SmallcapsGlow Map View 76x50 Zoom Use 0% Tactical HUD 1 Map Filters NONE Filters NONE Steam 1 RUN: 26423938-3f20-42a1-9ddd-2741620e9148